bitfinex/quotes_BTCUSD_20220207
["timestamp","ask_amount","ask_price","bid_price","bid_amount"]
[1644234515862,0.0699001,42712.0,42711.0,0.41474971]
[1644234516055,0.0699001,42712.0,42711.0,0.15857669]
[1644234516256,0.0699001,42712.0,42711.0,0.05]
[1644234516755,0.0699001,42712.0,42710.0,0.108576]
[1644234516955,0.0699001,42712.0,42711.0,0.05]
[1644234517155,0.0699001,42712.0,42711.0,0.1]
[1644234518355,0.0699001,42712.0,42711.0,0.15857413]
[1644234519799,0.06927783,42712.0,42711.0,0.15857413]
[1644234520599,0.05905412,42712.0,42711.0,0.15857413]
[1644234520802,0.05905412,42712.0,42711.0,0.10857413]
[1644234521798,0.05905412,42712.0,42711.0,0.15857413]
[1644234531262,0.00062964,42719.0,42715.0,0.0585664]
[1644234531460,0.1347,42737.0,42715.0,0.0585664]
[1644234531461,0.00029812,42727.0,42719.0,0.8]
[1644234531659,0.08590275,42741.0,42721.0,0.8]
[1644234531860,0.1509,42750.0,42728.0,0.05]
[1644234532056,0.1009,42750.0,42732.0,0.31444829]
[1644234532258,0.001,42750.0,42746.0,0.44128939]
[1644234532455,0.001,42750.0,42746.0,0.82009655]
[1644234532456,0.29876744,42750.0,42746.0,0.82009655]
[1644234532657,0.29876744,42750.0,42746.0,0.44128939]
[1644234533656,0.29895695,42750.0,42746.0,0.82009655]
[1644234534057,0.29895695,42750.0,42746.0,0.49585237]
[1644234534261,0.29895695,42750.0,42746.0,0.05852221]
[1644234534454,0.29895695,42750.0,42746.0,0.34343734]
[1644234534709,0.29876744,42750.0,42746.0,0.05852221]
[1644234534907,0.29939559,42750.0,42745.0,0.06800582]
[1644234535108,0.29939559,42750.0,42748.0,0.05]
[1644234535109,0.35792959,42750.0,42748.0,0.05]
[1644234535505,0.35792959,42750.0,42749.0,0.28614761]
[1644234535506,0.45792959,42750.0,42749.0,0.28614761]
[1644234535707,0.16016215,42750.0,42749.0,0.28614761]
[1644234535907,0.159534,42750.0,42748.0,0.33056424]
[1644234536106,0.159534,42750.0,42748.0,0.33074387]
[1644234536107,0.05,42749.0,42748.0,0.33074387]
[1644234536308,0.05,42749.0,42748.0,0.05]
[1644234537112,0.05,42749.0,42745.0,0.37671382]
[1644234537307,0.05,42749.0,42747.0,0.04630111]
[1644234539354,0.05,42749.0,42746.0,0.17558023]
[1644234539754,0.16016215,42750.0,42746.0,0.17558023]
[1644234540555,0.16016215,42750.0,42746.0,0.11705223]
[1644234541956,0.16016215,42750.0,42745.0,0.39377979]
[1644234541957,0.159534,42750.0,42745.0,0.39377979]
[1644234542198,0.16016215,42750.0,42745.0,0.39377979]
[1644234543002,0.159534,42750.0,42745.0,0.39377979]
[1644234543405,0.16016215,42750.0,42745.0,0.44377979]
[1644234543601,0.21016215,42750.0,42745.0,0.44377979]
[1644234543801,0.21016215,42750.0,42745.0,0.35643289]
[1644234544201,0.21016215,42750.0,42745.0,0.30643289]
[1644234544202,0.209534,42750.0,42745.0,0.30643289]
[1644234544702,0.21016215,42750.0,42745.0,0.30643289]
[1644234545502,0.159534,42750.0,42745.0,0.30643289]
[1644234545703,0.16016215,42750.0,42745.0,0.30643289]
[1644234546354,0.21869615,42750.0,42745.0,0.30643289]
[1644234546553,0.05,42747.0,42745.0,0.30643289]
[1644234546754,0.058534,42746.0,42745.0,0.30643289]
[1644234548054,0.058534,42746.0,42745.0,0.35643289]
[1644234548256,0.058534,42746.0,42745.0,0.30643289]
[1644234549600,0.0008889,42748.0,42745.0,0.30643289]
[1644234549798,0.00059137,42748.0,42745.0,0.30643289]
[1644234550399,0.117066,42748.0,42745.0,0.30643289]
[1644234550607,0.117066,42748.0,42744.0,0.02000099]
[1644234550608,0.05,42746.0,42744.0,0.02000099]
[1644234550802,0.105846,42745.0,42744.0,0.02000099]
[1644234551001,0.1144124,42745.0,42729.0,0.78177691]
[1644234551202,0.04759753,42745.0,42729.0,0.78177691]
[1644234551401,0.04759753,42745.0,42731.0,0.18952122]
[1644234551402,0.167103,42736.0,42731.0,0.18952122]
[1644234551602,0.167103,42736.0,42731.0,0.24806901]
[1644234551802,0.058552,42735.0,42731.0,0.18952122]
[1644234552001,0.05884953,42735.0,42731.0,0.18952122]
[1644234552202,0.05884953,42735.0,42726.0,0.28139487]
[1644234552602,0.05884953,42735.0,42730.0,0.07313307]
[1644234553001,0.00059151,42733.0,42726.0,0.31427986]
[1644234553202,0.058548,42731.0,42726.0,0.31427986]
[1644234554153,0.05914278,42731.0,42727.0,0.05854897]
[1644234555153,0.058548,42731.0,42727.0,0.05854897]
[1644234555358,0.05914278,42731.0,42727.0,0.05854897]
[1644234556354,0.058548,42731.0,42727.0,0.05854897]
[1644234556553,0.05914278,42731.0,42727.0,0.05854897]
[1644234557406,0.058548,42731.0,42727.0,0.05854897]
[1644234557804,0.05914256,42731.0,42727.0,0.05854897]
[1644234558201,0.05914256,42731.0,42727.0,0.1290171]
[1644234558801,0.058548,42731.0,42727.0,0.1290171]
[1644234559003,0.05914256,42731.0,42727.0,0.1290171]
[1644234559907,0.058548,42731.0,42728.0,0.28525362]
[1644234560103,0.05914256,42731.0,42728.0,0.28525362]
[1644234560706,0.00059456,42731.0,42728.0,0.28525362]
[1644234561152,0.00029753,42733.0,42728.0,0.28525362]
[1644234561357,0.00059457,42732.0,42728.0,0.28525362]
[1644234561654,0.05855,42731.0,42728.0,0.28525362]
[1644234563654,0.00059457,42732.0,42728.0,0.28525362]
[1644234564255,0.00059457,42732.0,42724.0,0.36465591]
[1644234564458,0.05,42728.0,42723.0,0.4723]
[1644234564713,0.0085664,42728.0,42723.0,0.01812998]
[1644234564909,0.00059461,42728.0,42723.0,0.01812998]
[1644234565111,0.05059461,42728.0,42723.0,0.01812998]
[1644234565909,0.05,42728.0,42723.0,0.01812998]
[1644234566210,0.058565,42727.0,42723.0,0.01812998]
[1644234566409,0.058565,42727.0,42723.0,0.07668243]
[1644234566609,0.058565,42727.0,42723.0,0.01812998]
[1644234567209,0.058565,42727.0,42724.0,0.0737531]
[1644234567408,0.05915961,42727.0,42723.0,0.25815909]
[1644234567609,0.05915961,42727.0,42721.0,0.20169512]
[1644234568457,0.00059462,42726.0,42721.0,0.20169512]
[1644234568858,0.00059462,42726.0,42722.0,0.05855119]
[1644234569056,0.00059462,42726.0,42725.0,0.08892139]
[1644234569457,0.058547,42730.0,42725.0,0.08892139]
[1644234569865,0.00059461,42728.0,42725.0,0.08892139]
[1644234570659,0.267098,42732.0,42725.0,0.08892139]
[1644234570859,0.058548,42730.0,42725.0,0.08892139]
[1644234571058,0.0005946,42729.0,42725.0,0.08892139]
[1644234571661,0.05,42729.0,42726.0,0.35]
[1644234572300,0.05,42729.0,42724.0,0.05854756]
[1644234573301,0.05,42729.0,42724.0,0.05654956]
[1644234573501,0.0491426,42730.0,42724.0,0.05654956]
[1644234574703,0.0491426,42730.0,42726.0,0.08994228]
[1644234575004,0.05,42729.0,42726.0,0.08994228]
[1644234575302,0.0491426,42730.0,42725.0,0.01]
[1644234575502,0.04,42729.0,42724.0,0.05654956]
[1644234575705,0.04,42729.0,42725.0,0.01]
[1644234576553,0.04,42729.0,42724.0,0.01]
[1644234576754,0.058553,42727.0,42724.0,0.01]
[1644234577355,0.058553,42727.0,42724.0,0.06855007]
[1644234579156,0.058553,42727.0,42724.0,0.0685481]
[1644234580511,0.058553,42727.0,42725.0,0.01]
[1644234583360,0.058553,42727.0,42726.0,0.01]
[1644234583557,0.058553,42727.0,42721.0,0.31938131]
[1644234583755,0.058553,42727.0,42721.0,0.21228915]
[1644234583954,0.058553,42725.0,42721.0,0.21169512]
[1644234584155,0.058553,42725.0,42724.0,0.01]
[1644234588711,0.05844563,42725.0,42724.0,0.01]
[1644234591652,0.05844563,42725.0,42721.0,0.2022898]
[1644234591860,0.09844563,42725.0,42721.0,0.00059468]
[1644234592056,0.04,42722.0,42721.0,0.00059468]
[1644234592257,0.1071384,42722.0,42721.0,0.00059468]
[1644234592456,0.1071384,42722.0,42719.0,0.00059469]
[1644234592855,0.0085664,42720.0,42719.0,0.00059469]
[1644234593054,0.058571,42721.0,42719.0,0.00059469]
[1644234593255,0.058575,42720.0,42719.0,0.00059469]
[1644234593554,0.058575,42720.0,42714.0,0.22944797]
[1644234593756,0.058567,42719.0,42717.0,0.00059471]
[1644234594806,0.058567,42719.0,42714.0,0.22944797]
[1644234595006,0.058567,42719.0,42716.0,0.00059473]
[1644234595206,0.117134,42719.0,42716.0,0.00059473]
[1644234595406,0.04,42717.0,42716.0,0.00059473]
[1644234596006,0.058566,42716.0,42714.0,0.22944797]
[1644234596206,0.058566,42716.0,42714.0,0.23004271]
[1644234596409,0.058566,42716.0,42714.0,0.00059474]
[1644234597312,0.117136,42716.0,42713.0,0.00059476]
[1644234598454,0.117136,42716.0,42712.0,0.08142485]
[1644234598656,0.117136,42716.0,42712.0,0.08201961]
[1644234599655,0.058566,42716.0,42712.0,0.08201962]
[1644234600355,0.058566,42716.0,42713.0,0.01]
[1644234601957,0.04,42717.0,42713.0,0.01]
[1644234602205,0.058562,42718.0,42713.0,0.01]
[1644234602405,0.058562,42718.0,42716.0,0.23627814]
[1644234603008,0.14,42720.0,42717.0,0.23586972]
[1644234603308,0.14,42720.0,42719.0,0.01]
[1644234603309,0.1,42720.0,42719.0,0.01]
[1644234603707,0.02166777,42723.0,42719.0,0.01]
[1644234604608,0.02166777,42723.0,42719.0,0.0105947]
[1644234605007,0.058554,42723.0,42721.0,0.08841844]
[1644234605407,0.058554,42723.0,42719.0,0.0005947]
[1644234605607,0.058554,42723.0,42716.0,0.23627814]
[1644234605868,0.058554,42723.0,42718.0,0.01]
[1644234606664,0.058554,42723.0,42721.0,0.01]
[1644234607063,0.058551,42725.0,42724.0,0.07675668]
[1644234607262,0.058551,42725.0,42724.0,0.36735385]
[1644234608363,0.058551,42725.0,42724.0,0.29059717]
[1644234608965,0.058551,42725.0,42721.0,0.01]
[1644234609812,0.058551,42725.0,42721.0,0.22589579]
[1644234610013,0.058551,42725.0,42724.0,0.06354333]
[1644234610212,0.04,42726.0,42724.0,0.34098583]
[1644234610413,0.058548,42727.0,42725.0,0.27423198]
[1644234610613,0.05917615,42727.0,42725.0,0.27423198]
[1644234610814,0.05917615,42727.0,42724.0,0.06354333]
[1644234611613,0.058548,42727.0,42724.0,0.06354333]
[1644234612816,0.058548,42727.0,42722.0,0.28821136]
[1644234613017,0.058548,42727.0,42719.0,0.32411029]
[1644234613458,0.04,42726.0,42719.0,0.32411029]
[1644234613759,0.058557,42724.0,42719.0,0.32411029]
[1644234613961,0.117119,42724.0,42718.0,0.28458585]
[1644234614160,0.117116,42725.0,42718.0,0.00063989]
[1644234614362,0.00062812,42726.0,42718.0,0.00063989]
[1644234614363,0.04,42720.0,42718.0,0.00063989]
[1644234614558,0.00062812,42726.0,42718.0,0.00063989]
[1644234614869,0.058563,42719.0,42718.0,0.00063989]
[1644234615059,0.058563,42719.0,42717.0,0.01]
[1644234615460,0.058563,42719.0,42716.0,0.00063989]
[1644234616360,0.058563,42719.0,42714.0,0.25369248]
[1644234616557,0.058563,42719.0,42715.0,0.28587874]
[1644234617109,0.117126,42720.0,42715.0,0.28587874]
[1644234617110,0.0581806,42720.0,42716.0,0.8]
[1644234617509,0.0581806,42720.0,42715.0,0.28523884]
[1644234617708,0.0581806,42720.0,42716.0,0.0006399]
[1644234618509,0.058563,42719.0,42716.0,0.0006399]
[1644234618708,0.058563,42719.0,42715.0,0.28523884]
[1644234618909,0.058563,42719.0,42715.0,0.28587874]
[1644234619912,0.058563,42719.0,42715.0,0.28523884]
[1644234620112,0.058563,42719.0,42715.0,0.28587875]
[1644234621162,0.058563,42719.0,42715.0,0.28523884]
[1644234621366,0.058563,42719.0,42715.0,0.28587875]
[1644234622065,0.058563,42719.0,42715.0,0.00063991]
[1644234622270,0.058569,42716.0,42715.0,0.00063991]
[1644234622466,0.058569,42716.0,42714.0,0.01]
[1644234622665,0.058569,42716.0,42715.0,0.00063991]
[1644234623066,0.04,42720.0,42715.0,0.00063991]
[1644234623264,0.04,42720.0,42715.0,0.30246412]
[1644234623464,0.04,42720.0,42715.0,0.30182421]
[1644234623664,0.04,42720.0,42715.0,0.30246411]
[1644234624067,0.04,42720.0,42717.0,0.01]
[1644234624467,0.1,42723.0,42717.0,0.01]
[1644234624713,0.04,42722.0,42717.0,0.01]
[1644234624915,0.04,42722.0,42718.0,0.00063988]
[1644234625314,0.098555,42722.0,42718.0,0.00063988]
[1644234625915,0.098555,42722.0,42717.0,0.01]
[1644234626115,0.058563,42721.0,42718.0,0.00063988]
[1644234626415,0.058564,42720.0,42718.0,0.00063988]
[1644234627215,0.058564,42720.0,42717.0,0.01]
[1644234627417,0.058564,42720.0,42717.0,0.01063989]
[1644234628015,0.05825518,42720.0,42717.0,0.01063989]
[1644234628458,0.05825518,42720.0,42717.0,0.01]
[1644234629864,0.05825518,42720.0,42717.0,0.06856083]
[1644234630062,0.05825518,42720.0,42717.0,0.01]
[1644234631962,0.11682118,42720.0,42717.0,0.01]
[1644234632221,0.058568,42719.0,42717.0,0.01]
[1644234632817,0.04,42718.0,42717.0,0.01]
[1644234633420,0.0485664,42718.0,42717.0,0.01]
[1644234634222,0.05825518,42720.0,42717.0,0.01]
[1644234634626,0.05825518,42720.0,42717.0,0.06856525]
[1644234635022,0.05825518,42720.0,42717.0,0.05856525]
[1644234636260,0.05825518,42720.0,42718.0,0.27370057]
[1644234636460,0.05825518,42720.0,42717.0,0.05856525]
[1644234637264,0.05825518,42720.0,42716.0,0.00063989]
[1644234637868,0.05825518,42720.0,42714.0,0.01]
[1644234638065,0.09825518,42720.0,42714.0,0.01]
[1644234638266,0.09825518,42720.0,42716.0,0.0006399]
[1644234638666,0.09825518,42720.0,42716.0,0.05920736]
[1644234638867,0.09825518,42720.0,42717.0,0.36317368]
[1644234639167,0.09825518,42720.0,42716.0,0.05856746]
[1644234639369,0.09825518,42720.0,42716.0,0.05915975]
[1644234639606,0.04,42717.0,42716.0,0.00059229]
[1644234639806,0.058569,42717.0,42716.0,0.00059229]
[1644234640423,0.058569,42717.0,42714.0,0.06856991]
[1644234640609,0.058569,42717.0,42714.0,0.06916222]
[1644234641110,0.1,42723.0,42716.0,0.325837]
[1644234641310,0.1,42723.0,42720.0,0.01]
[1644234641510,0.1,42723.0,42720.0,0.06855392]
[1644234642108,0.01995128,42725.0,42721.0,0.36317368]
[1644234643108,0.00059479,42726.0,42721.0,0.36317368]
[1644234643364,0.00059479,42726.0,42722.0,0.05855666]
[1644234643960,0.04,42727.0,42722.0,0.05855666]
[1644234644164,0.0005948,42726.0,42725.0,0.34239696]
[1644234644359,0.0005948,42726.0,42725.0,0.76411642]
[1644234644559,0.0005948,42726.0,42725.0,0.82266042]
[1644234644760,0.0005948,42726.0,42725.0,0.88120142]
[1644234644960,0.0005948,42726.0,42725.0,1.09911897]
[1644234645161,0.04,42728.0,42725.0,1.27643097]
[1644234645361,0.04,42728.0,42726.0,0.08363071]
[1644234645563,0.04,42728.0,42727.0,0.36317368]
[1644234645564,0.04059478,42728.0,42727.0,0.36317368]
[1644234646362,0.04,42728.0,42727.0,0.36317368]
[1644234646563,0.0085664,42729.0,42727.0,0.36317368]
[1644234646762,0.04,42728.0,42727.0,0.36317368]
[1644234647411,0.04,42728.0,42727.0,0.48026625]
[1644234648510,0.04,42728.0,42727.0,0.4801647]
[1644234648711,0.00059459,42730.0,42727.0,0.4801647]
[1644234648911,0.04,42728.0,42727.0,0.4801647]
[1644234649111,0.0085664,42729.0,42727.0,0.4801647]
[1644234649311,0.0085664,42729.0,42728.0,0.30520353]
[1644234649714,0.00059459,42730.0,42728.0,0.30520353]
[1644234649914,0.05914359,42730.0,42728.0,0.30520353]
[1644234650114,0.0485664,42729.0,42728.0,0.30520353]
[1644234650960,0.058549,42730.0,42728.0,0.30520353]
[1644234651163,0.0485664,42729.0,42728.0,0.30520353]
[1644234653164,0.058549,42730.0,42728.0,0.30520353]
[1644234653365,0.0485664,42729.0,42728.0,0.30520353]
[1644234653560,0.058549,42730.0,42728.0,0.30520353]
[1644234653961,0.058549,42730.0,42728.0,0.36375524]
[1644234654165,0.0485664,42729.0,42728.0,0.05855171]
[1644234654362,0.0485664,42729.0,42728.0,0.34343003]
[1644234655619,0.00059459,42731.0,42728.0,0.71926703]
[1644234655820,0.00059459,42731.0,42730.0,0.335837]
[1644234656022,0.00029753,42736.0,42731.0,0.8]
[1644234656221,0.01923446,42738.0,42735.0,0.01]
[1644234656418,0.00029753,42737.0,42736.0,0.373137]
[1644234656619,0.01893693,42738.0,42737.0,0.07517003]
[1644234656819,0.01893693,42738.0,42737.0,0.86148071]
[1644234657218,0.00029753,42744.0,42737.0,0.86148071]
[1644234657420,0.01869216,42746.0,42743.0,0.01]
[1644234657819,0.01869216,42746.0,42742.0,0.27961438]
[1644234658020,0.01869216,42746.0,42743.0,0.29348544]
[1644234658221,0.01869216,42746.0,42745.0,0.01]
[1644234658464,0.01869216,42746.0,42744.0,0.08429391]
[1644234658664,0.01869216,42746.0,42745.0,0.29103072]
[1644234659262,0.00029753,42750.0,42745.0,0.29103072]
[1644234659462,0.00029753,42748.0,42745.0,0.29103072]
[1644234659661,0.00029753,42750.0,42745.0,0.29103072]
[1644234659864,0.0005944,42750.0,42745.0,0.29103072]
[1644234660063,0.00089193,42750.0,42745.0,0.29103072]
[1644234660362,0.00089193,42750.0,42746.0,0.01]
[1644234660363,0.0005944,42750.0,42746.0,0.01]
[1644234660665,0.0005944,42750.0,42745.0,0.34955086]
[1644234660860,0.00029753,42750.0,42745.0,0.34955086]
[1644234661061,0.0005944,42750.0,42745.0,0.34955086]
[1644234661264,0.00089193,42750.0,42745.0,0.34955086]
[1644234661461,0.00089193,42750.0,42746.0,0.01]
[1644234661864,0.0005944,42750.0,42746.0,0.12703591]
[1644234662110,0.00029753,42751.0,42746.0,0.12703591]
[1644234662312,0.00018853,42750.0,42746.0,0.12703591]
[1644234663210,0.00029753,42752.0,42746.0,0.12703591]
[1644234663411,0.00018853,42750.0,42746.0,0.12703591]
[1644234664511,0.00029753,42752.0,42747.0,0.05851787]
[1644234664715,0.00018853,42750.0,42748.0,0.27953975]
[1644234664911,0.00018853,42750.0,42748.0,0.28000735]
[1644234665314,0.00018853,42750.0,42749.0,0.01]
[1644234665714,0.00029753,42752.0,42750.0,0.22680032]
[1644234665965,0.00062666,42752.0,42751.0,0.13681564]
[1644234666369,0.00062666,42752.0,42751.0,0.07830217]
[1644234666765,0.05852,42753.0,42748.0,0.28000735]
[1644234666965,0.00029753,42754.0,42750.0,0.05851848]
[1644234667164,0.00062666,42754.0,42750.0,0.05851848]
[1644234667363,0.04,42752.0,42750.0,0.05851848]
[1644234667764,0.05881753,42753.0,42751.0,0.07152693]
[1644234667966,0.04029753,42755.0,42751.0,0.07152693]
[1644234668167,0.00029753,42754.0,42751.0,0.07152693]
[1644234668365,0.00062666,42754.0,42751.0,0.07152693]
[1644234669165,0.00029753,42755.0,42751.0,0.07152693]
[1644234669366,0.40991678,42756.0,42751.0,0.07152693]
[1644234669613,0.00092419,42755.0,42751.0,0.07152693]
[1644234670414,0.00029753,42755.0,42751.0,0.07152693]
[1644234670612,0.00062666,42755.0,42751.0,0.07152693]
[1644234670812,0.04,42754.0,42751.0,0.07152693]
[1644234671012,0.04,42754.0,42751.0,0.34645917]
[1644234671517,0.04,42754.0,42751.0,0.07152693]
[1644234673371,0.04,42754.0,42751.0,0.34567188]
[1644234673767,0.04,42754.0,42751.0,0.07152693]
[1644234674770,0.058522,42753.0,42751.0,0.07152693]
[1644234675173,0.04029753,42754.0,42751.0,0.07152693]
[1644234675370,0.04018837,42754.0,42751.0,0.07152693]
[1644234676376,0.04,42754.0,42751.0,0.07152693]
[1644234676576,0.04,42754.0,42750.0,0.05851848]
[1644234676975,0.04029753,42754.0,42750.0,0.05851848]
[1644234677814,0.04062666,42754.0,42750.0,0.05851848]
[1644234678013,0.04062666,42754.0,42752.0,0.07545831]
[1644234678816,0.04,42754.0,42752.0,0.07545831]
[1644234681082,0.04,42754.0,42748.0,0.29067222]
[1644234681382,0.15734553,42754.0,42748.0,0.29067222]
[1644234681684,0.09881953,42754.0,42748.0,0.29067222]
[1644234682086,0.09881953,42754.0,42749.0,0.05851741]
[1644234682385,0.09881953,42754.0,42750.0,0.08986936]
[1644234682581,0.09871059,42754.0,42750.0,0.08986936]
[1644234683582,0.098522,42754.0,42750.0,0.08986936]
[1644234683784,0.09871059,42754.0,42750.0,0.08986936]
[1644234684387,0.09900812,42754.0,42750.0,0.08986936]
[1644234684612,0.05900812,42754.0,42750.0,0.08986936]
[1644234684809,0.05881953,42754.0,42750.0,0.08986936]
[1644234685010,0.098524,42751.0,42748.0,0.29067222]
[1644234687516,0.09845196,42751.0,42748.0,0.29067222]
[1644234687715,0.03992796,42749.0,42748.0,0.29067222]
[1644234689670,0.00092419,42751.0,42748.0,0.29067222]
[1644234689671,0.00029753,42751.0,42748.0,0.29067222]
[1644234689972,0.00062666,42751.0,42748.0,0.29067222]
[1644234690365,0.03992796,42749.0,42748.0,0.29067222]
[1644234690766,0.00029753,42751.0,42748.0,0.29067222]
[1644234690964,0.03992796,42749.0,42748.0,0.29067222]
[1644234691164,0.00062666,42751.0,42748.0,0.29067222]
[1644234691364,0.00092419,42751.0,42748.0,0.29067222]
[1644234691563,0.00062666,42751.0,42748.0,0.29067222]
[1644234691764,0.03992796,42749.0,42748.0,0.29067222]
[1644234692921,0.03992796,42749.0,42744.0,0.33567675]
[1644234693121,0.03992796,42749.0,42743.0,0.1381]
[1644234693320,0.00029753,42750.0,42740.0,0.03816576]
[1644234693321,0.03992796,42744.0,42740.0,0.03816576]
[1644234693519,0.03992796,42744.0,42740.0,0.01846506]
[1644234693718,0.00018859,42749.0,42740.0,0.01846506]
[1644234693719,0.03992796,42741.0,42740.0,0.01846506]
[1644234696167,0.058536,42740.0,42738.0,0.30561486]
[1644234697370,0.058536,42740.0,42736.0,0.26445574]
[1644234697570,0.058536,42740.0,42737.0,0.27820704]
[1644234698273,0.03992796,42739.0,42737.0,0.27820704]
[1644234700813,0.03992796,42739.0,42737.0,0.35218767]
[1644234701014,0.03992796,42739.0,42738.0,0.2758631]
[1644234701817,0.00059343,42741.0,42738.0,0.2758631]
[1644234702016,0.00059343,42741.0,42738.0,0.33439453]
[1644234702221,0.03992796,42739.0,42735.0,0.36317368]
[1644234702519,0.03992796,42737.0,42734.0,0.36317368]
[1644234702918,0.117097,42736.0,42734.0,0.36317368]
[1644234703375,0.117097,42736.0,42735.0,0.08367682]
[1644234703569,0.03992796,42737.0,42735.0,0.45692254]
[1644234703768,0.03992796,42737.0,42736.0,0.36317368]
[1644234705675,0.09846796,42737.0,42736.0,0.36317368]
[1644234706271,0.03992796,42737.0,42736.0,0.36317368]
[1644234708315,0.03992796,42737.0,42736.0,0.3631007]
[1644234711066,0.03992796,42737.0,42734.0,0.25677693]
[1644234711269,0.03992796,42737.0,42728.0,0.16254989]
[1644234711270,0.03992796,42737.0,42730.0,0.28160263]
[1644234711570,0.03992796,42732.0,42728.0,0.15238726]
[1644234711868,0.00062666,42739.0,42729.0,0.27238026]
[1644234712066,0.00062666,42739.0,42728.0,0.01848726]
[1644234712067,0.03992796,42730.0,42728.0,0.01848726]
[1644234713768,0.058556,42728.0,42721.0,0.39643071]
[1644234713968,0.058556,42728.0,42724.0,0.05919784]
[1644234714168,0.03992796,42727.0,42724.0,0.05919784]
[1644234714612,0.03992796,42727.0,42724.0,0.00064198]
[1644234714813,0.03992796,42727.0,42721.0,0.33787059]
[1644234715113,0.03992796,42727.0,42724.0,0.05855555]
[1644234715312,0.058557,42726.0,42724.0,0.05855555]
[1644234716116,0.03992796,42727.0,42724.0,0.05855555]
[1644234717716,0.03992796,42727.0,42723.0,0.00064197]
[1644234718469,0.03992796,42727.0,42722.0,0.11710242]
[1644234718676,0.03992796,42727.0,42723.0,0.00064198]
[1644234719672,0.03992796,42727.0,42722.0,0.11710242]
[1644234719876,0.03992796,42727.0,42723.0,0.00064198]
[1644234720874,0.03992796,42727.0,42722.0,0.11710242]
[1644234721075,0.03992796,42727.0,42723.0,0.00064198]
[1644234722116,0.03992796,42727.0,42722.0,0.11710242]
[1644234722318,0.03992796,42727.0,42723.0,0.00064198]
[1644234723218,0.03992796,42727.0,42724.0,0.05855112]
[1644234723418,0.03992796,42727.0,42726.0,0.22456222]
[1644234723619,0.1,42729.0,42726.0,0.23463426]
[1644234723823,0.1,42729.0,42726.0,0.22456222]
[1644234724620,0.05795141,42732.0,42726.0,0.22456222]
[1644234725419,0.05795141,42732.0,42726.0,0.28311263]
[1644234725621,0.03992796,42732.0,42727.0,0.01007204]
[1644234725874,0.05917463,42733.0,42726.0,0.28311263]
[1644234726067,0.05917463,42733.0,42727.0,0.01007204]
[1644234726667,0.05917463,42733.0,42726.0,0.28311263]
[1644234726867,0.03992796,42729.0,42726.0,0.28311263]
[1644234727266,0.05855,42730.0,42726.0,0.28311263]
[1644234727467,0.00062664,42733.0,42728.0,0.01007204]
[1644234727667,0.00062664,42733.0,42729.0,0.05854708]
[1644234728067,0.1,42734.0,42729.0,0.05854708]
[1644234728267,0.00062666,42733.0,42729.0,0.05854708]
[1644234728468,0.05917366,42733.0,42729.0,0.05854708]
[1644234728870,0.05917366,42733.0,42732.0,0.06854066]
[1644234729470,0.058547,42733.0,42732.0,0.06854066]
[1644234730319,0.058547,42733.0,42731.0,0.05854569]
[1644234730519,0.058547,42733.0,42729.0,0.05855087]
[1644234731117,0.03992796,42730.0,42726.0,0.36146222]
[1644234731323,0.058556,42729.0,42726.0,0.50104815]
[1644234731520,0.058556,42729.0,42724.0,0.000642]
[1644234731724,0.03992796,42726.0,42723.0,0.30916179]
[1644234731920,0.03992796,42726.0,42724.0,0.00064198]
[1644234732726,0.058559,42725.0,42724.0,0.00064198]
[1644234732921,0.058559,42725.0,42722.0,0.01835669]
[1644234733123,0.058559,42725.0,42723.0,0.00045432]
[1644234733765,0.03992796,42724.0,42723.0,0.00045432]
[1644234734165,0.058559,42725.0,42722.0,0.01835669]
[1644234734371,0.058563,42722.0,42721.0,0.00045434]
[1644234734566,0.09849096,42722.0,42721.0,0.00045434]
[1644234735170,0.1,42724.0,42721.0,0.00045434]
[1644234735369,0.1,42724.0,42719.0,0.25766388]
[1644234735570,0.1,42724.0,42719.0,0.25811824]
[1644234735870,0.158558,42724.0,42719.0,0.25811824]
[1644234736270,0.158558,42724.0,42719.0,0.00045436]
[1644234736472,0.03992796,42720.0,42717.0,0.06863705]
[1644234736673,0.03992796,42720.0,42719.0,0.00064238]
[1644234737728,0.03992796,42720.0,42716.0,0.000241]
[1644234737925,0.03992796,42717.0,42715.0,0.36317368]
[1644234738227,0.03992796,42717.0,42713.0,0.000241]
[1644234738228,0.058577,42716.0,42713.0,0.000241]
[1644234738425,0.058577,42716.0,42711.0,0.36317368]
[1644234738426,0.03992796,42714.0,42711.0,0.36341468]
[1644234739325,0.058577,42713.0,42711.0,0.36341468]
[1644234739528,0.058577,42713.0,42711.0,0.36317368]
[1644234740325,0.058577,42713.0,42710.0,0.05881618]
[1644234742375,0.058577,42713.0,42710.0,0.000241]
[1644234742673,0.058577,42713.0,42709.0,0.06145832]
[1644234743677,0.058577,42713.0,42709.0,0.06081657]
[1644234743876,0.058577,42713.0,42709.0,0.06145833]
[1644234744476,0.058577,42713.0,42709.0,0.07153037]
[1644234744724,0.05857,42716.0,42712.0,0.01007204]
[1644234744918,0.05857,42716.0,42712.0,0.06863933]
[1644234745319,0.1,42718.0,42712.0,0.06863933]
[1644234745719,0.058567,42719.0,42713.0,0.21526801]
[1644234745921,0.058567,42719.0,42713.0,0.21550901]
[1644234746320,0.058567,42719.0,42715.0,0.05856306]
[1644234746719,0.058567,42719.0,42715.0,0.05880406]
[1644234747424,0.058567,42719.0,42715.0,0.05944589]
[1644234747621,0.058567,42719.0,42715.0,0.05920489]
[1644234748020,0.158567,42719.0,42715.0,0.05920489]
[1644234748467,0.158567,42719.0,42715.0,0.05856306]
[1644234748670,0.158567,42719.0,42715.0,0.05920489]
[1644234749667,0.158567,42719.0,42715.0,0.05856306]
[1644234749867,0.158567,42719.0,42715.0,0.05920489]
[1644234750868,0.158567,42719.0,42715.0,0.05856306]
[1644234751067,0.158567,42719.0,42715.0,0.05920489]
[1644234751669,0.158567,42719.0,42715.0,0.00064183]
[1644234751670,0.03992796,42716.0,42715.0,0.00064183]
[1644234751872,0.09849896,42716.0,42715.0,0.00054797]
[1644234752112,0.09849896,42716.0,42712.0,0.000241]
[1644234752313,0.09849896,42716.0,42711.0,0.11713458]
[1644234753314,0.058571,42716.0,42711.0,0.12720662]
[1644234753516,0.058571,42716.0,42712.0,0.05856727]
[1644234753714,0.058571,42716.0,42712.0,0.05880827]
[1644234754618,0.058571,42716.0,42712.0,0.05926176]
[1644234754816,0.058567,42718.0,42715.0,0.05856634]
[1644234755228,0.1,42719.0,42715.0,0.36273784]